Cogmind - Beta 16.1 *** ADVENTURER MODE // 2026.02.22 @ 10:00:28 Player: core_nxt Result: Core destroyed Performance ------------- Evolutions (0) 0 Regions Visited (3) 600 Robots Destroyed (16) 80 Value Destroyed (443) 443 Prototype IDs (2) 40 Alien Tech Used (0) 0 Bonus (0) 0 TOTAL SCORE: 1163 Bonus ------- None Cogmind --------- Core Integrity 0/250 Matter 300/300 Energy 100/100 System Corruption 0% Temperature Cool (0) Movement Core (50) Location -10/Subcaves Parts ------- > --- POWER (1) -------- (None) > --- PROPULSION (2) --- (None) > --- UTILITY (2) ------ (None) > --- WEAPON (2) ------- (None) > --- INVENTORY (5) ---- (None) Peak State ------------ > --- POWER ------------ Ion Engine > --- PROPULSION ------- Aluminum Leg > --- UTILITY ---------- Signal Interpreter Medium Armor Plating > --- WEAPON ----------- Light Assault Rifle Battle Rifle > --- INVENTORY -------- High-capacity Matter Pod Sensor Array Grenade Launcher Scrap Shield Fragment Scrap Shield Fragment Scrap Shield Fragment Scrap Shield Fragment [Rating: 9] Favorites ----------- Power Ion Engine Engine Ion Engine Propulsion Aluminum Leg Leg Aluminum Leg Wheel Subdweller Monowheel Utility Signal Interpreter Device Seismic Detector Processor Signal Interpreter Protection Medium Armor Plating Weapon Light Assault Rifle Energy Gun Medium Laser Ballistic Gun Light Assault Rifle Launcher Grenade Launcher Build | -11 -10 -10 -10 ------- Run | Yrd Mat Min Sub Slots Evolved . | . . . . Power . | . . . . Propulsion . | . . . . Utility . | . . . . Weapon . | . . . . Parts Attached 17 | 6 2 2 7 Power 3 | 1 . 1 1 Engine 3 | 1 . 1 1 Core . | . . . . Reactor . | . . . . Propulsion 4 | 2 . . 2 Treads . | . . . . Leg 2 | 2 . . . Wheel 2 | . . . 2 Hover . | . . . . Flight . | . . . . Utility 5 | 1 1 1 2 Device 2 | 1 . 1 . Storage . | . . . . Processor 1 | . 1 . . Hackware . | . . . . Protection 2 | . . . 2 Artifact . | . . . . Weapon 5 | 2 1 . 2 Energy Gun 1 | 1 . . . Energy Cannon . | . . . . Ballistic Gun 3 | 1 1 . 1 Ballistic Cannon . | . . . . Launcher 1 | . . . 1 Special Weapon . | . . . . Impact Weapon . | . . . . Slashing Weapon . | . . . . Piercing Weapon . | . . . . Special Melee Weapon . | . . . . Unidentified Prototypes . | . . . . Parts Lost 8 | . . 1 7 Power 1 | . . 1 . Propulsion 2 | . . . 2 Utility 3 | . . . 3 Weapon 2 | . . . 2 Highest Loss Streak 3 | . . 1 3 To Critical Strikes . | . . . . Average Backups 3 | 2 3 5 3 Power . | . . . . Propulsion . | . . . . Utility 2 | . 1 4 2 Weapon 1 | . 1 1 1 Tool/Special . | . . . . Unused Backups 5 | 1 1 . 3 Power 1 | . 1 . . Propulsion . | . . . . Utility 4 | 1 . . 3 Weapon . | . . . . Tool/Special . | . . . . Average Slot Usage (%) 93 | . 99 99 84 Engine 13 | . 14 13 14 Leg 22 | . 28 28 14 Device 8 | . 14 14 . Processor 13 | . 13 14 14 Protection 4 | . . . 12 Energy Gun 2 | . 9 . . Ballistic Gun 23 | . 18 28 24 Peak Build Rating 9 | 6 7 7 9 Average Rating 7 | 4 6 6 7 On Entrance 5 | . 6 7 7 Avg Prop Armor Cover (%) . | . . . . Naked Turns . | . . . . Heaviest Build 17 | 9 9 9 17 Greatest Support 40 | 20 20 20 40 Greatest Overweight (x) 1 | . . . 1 Average Overweight (x) . | . . . . Largest Inventory Capacity 35 | 5 5 5 35 Average Capacity 8 | 5 5 5 12 Most Carried 8 | 3 5 5 8 Average Carried 4 | 2 3 5 5 Final Capacity 5 | 5 5 5 5 Final Carried 5 | 2 5 5 . Class Distribution -------------------- 89% | Mutant 10% | Hauler-Mutant Dominant Class ---------------- Mutant | -10/Materials Mutant | -10/Mines Mutant | -10/Subcaves Resources | -11 -10 -10 -10 ----------- Run | Yrd Mat Min Sub Matter Collected 865 | 146 64 195 460 Remotely . | . . . . Salvage Created 599 | 24 62 71 442 Parts 41 | 3 2 5 31 Haulers Intercepted 1 | . 1 . . Recyclers Shooed . | . . . . Parts Field Recycled . | . . . . Retrieved Matter . | . . . . Parts Self-Destructed 4 | . . . 4 Prevented . | . . . . Parts Restored . | . . . . Kills | -11 -10 -10 -10 ------- Run | Yrd Mat Min Sub Combat Hostiles Destroyed 14 | . 1 4 9 Guns 12 | . 1 4 7 AOE 2 | . . . 2 Classes Destroyed 5 | 1 2 1 1 Tunneler 1 | 1 . . . Hauler 1 | . 1 . . Swarmer 4 | . 1 3 . Grunt 1 | . . 1 . Subdweller 9 | . . . 9 Best Kill Streak 3 | 1 1 3 2 Combat Bots Only 3 | . 1 3 2 Max Kills in Single Turn 1 | 1 1 1 1 Gunslinging . | . . . . Exploded 1 | . . . 1 Melee . | . . . . Uniques/NPCs Destroyed . | . . . . Combat | -11 -10 -10 -10 -------- Run | Yrd Mat Min Sub Hostile Shots Fired 83 | . 6 17 60 Missed 22 | . 3 4 15 Hits 61 | . 3 13 45 Projectile 61 | . 3 13 45 AOE 2 | . . 2 . Critical Strikes 1 | . . . 1 Damage Taken 996 | . 13 192 791 Core 131 | . . 28 103 Absorbed by Shields . | . . . . Ignored by Resistances 279 | . 6 54 219 Core Remaining (%) 100 | 100 . . . Volleys Fired 78 | 2 13 12 51 Largest 2 | 2 2 2 2 Hottest 70 | 70 70 40 45 Shots Fired 142 | 4 26 24 88 Gun 138 | 4 26 24 84 Cannon . | . . . . Launcher 4 | . . . 4 Special . | . . . . Kinetic 131 | 2 21 24 84 Thermal 7 | 2 5 . . Explosive 4 | . . . 4 Electromagnetic . | . . . . Robot Hit Streak 43 | 3 11 11 43 Robot Miss Streak 3 | . 3 1 1 Penetration Max . | . . . . Secondary Targets 1 | . . . 1 Max Gunslinging Chain 1 | . . . 1 Shots Hit Robots 111 | 3 16 18 74 Core Hits 37 | 1 4 6 26 Critical Kills . | . . . . Critical Parts Destroyed 1 | . 1 . . Critical Strikes 2 | . 1 . 1 Destroy 2 | . 1 . 1 Melee Attacks . | . . . . Impact . | . . . . Slashing . | . . . . Piercing . | . . . . Sneak Attacks . | . . . . Combat Hostiles . | . . . . Follow-up Attacks . | . . . . Damage Inflicted 1237 | 36 165 194 842 Guns 1126 | 36 165 194 731 Cannons . | . . . . Explosions 111 | . . . 111 Melee . | . . . . Ramming . | . . . . Kinetic 1087 | 10 152 194 731 Thermal 39 | 26 13 . . Explosive 111 | . . . 111 Electromagnetic . | . . . . Impact . | . . . . Slashing . | . . . . Piercing . | . . . . Highest Corruption . | . . . . Average Corruption . | . . . . Corruption Purged . | . . . . Corruption Blocked . | . . . . Overload Shots . | . . . . Overflow Damage . | . . . . Projectiles . | . . . . Explosions . | . . . . Melee . | . . . . Knockbacks . | . . . . Impact . | . . . . Kinetic . | . . . . Secondary . | . . . . Self-Inflicted Damage . | . . . . Shots . | . . . . Rammed . | . . . . Targets Rammed . | . . . . Kicked . | . . . . Crushed . | . . . . Highest Temperature 222 | 40 40 44 222 Average Temperature 45 | 20 19 25 109 Received Heat Transfer 440 | . . 45 395 Siege Activations . | . . . . Martial Activations . | . . . . Shielding Activations . | . . . . Robots Disrupted . | . . . . Combat Hostiles . | . . . . Robots Corrupted . | . . . . Combat Hostiles . | . . . . Parts Fried . | . . . . Impact Corruptions . | . . . . Robots Melted . | . . . . Combat Hostiles . | . . . . Parts Melted 1 | . . . 1 Heat Transferred 111 | 74 37 . . Parts Sabotaged . | . . . . Parts Stolen . | . . . . Parts Stripped 6 | . . . 6 Power Chain Reactions . | . . . . Alert | -11 -10 -10 -10 ------- Run | Yrd Mat Min Sub Maximum Alert Level . | . . . . Low Security (%) 100 | 100 100 100 . Level 1 . | . . . . Level 2 . | . . . . Level 3 . | . . . . Level 4 . | . . . . Level 5 . | . . . . High Security . | . . . . Max Security . | . . . . Peak Influence 70 | 5 50 70 . Initial 2 | . . 2 . Average 5 | . 5 6 . Influence Increases 182 | 5 87 90 . Destroy 0b10 Robot/C 100 | . 20 80 . Destroy 0b10 Robot/NC 10 | 5 5 . . Destroy Leader 12 | . 2 10 . Select Force Hacks 30 | . 30 . . Lose Combat Pursuer 30 | . 30 . . Influence Decreases 182 | 5 80 97 . Entered New Map 5 | . . 5 . Time Decay 177 | 5 80 92 . Squads Dispatched 1 | . 1 . . Investigation 1 | . 1 . . Extermination . | . . . . Reinforcement . | . . . . Assault . | . . . . Garrison . | . . . . Intercept . | . . . . Searches Triggered . | . . . . Construction Impeded . | . . . . Haulers Reinforced . | . . . . Active Scanning Responses . | . . . . Cargo Convoy Interrupts . | . . . . Stealth | -11 -10 -10 -10 --------- Run | Yrd Mat Min Sub Distress Signals . | . . . . Communications Jammed . | . . . . Distress Signals . | . . . . Times Spotted 22 | . 6 5 11 Peak Tracking Total 4 | . 3 3 4 Tactical Retreats 1 | . 1 . . Traps | -11 -10 -10 -10 ------- Run | Yrd Mat Min Sub Traps Triggered 1 | . 1 . . Indirectly . | . . . . Trap Hack Attempts . | . . . . Triggered . | . . . . Disarmed . | . . . . Reprogrammed . | . . . . Reused . | . . . . Traps Extracted . | . . . . Installed . | . . . . Triggered . | . . . . Machines | -11 -10 -10 -10 ---------- Run | Yrd Mat Min Sub Machines Disabled . | . . . . Max in Single Turn . | . . . . Machines Repaired . | . . . . Machines Dismantled . | . . . . Machines Sabotaged . | . . . . Overloaded Fab Kills . | . . . . Hacking | -11 -10 -10 -10 --------- Run | Yrd Mat Min Sub Machines Accessed 3 | . 2 . 1 Terminals 1 | . 1 . . Fabricators . | . . . . Repair Stations . | . . . . Recycling Units 1 | . 1 . . Scanalyzers . | . . . . Garrison Access . | . . . . Total Hacks 10 | . 6 . 4 Successful 7 | . 3 . 4 Failed 3 | . 3 . . Catastrophic . | . . . . Database Lockouts . | . . . . Manual 2 | . 2 . . Terminals 4 | . 4 . . Fabricators . | . . . . Repair Stations . | . . . . Recycling Units 2 | . 2 . . Scanalyzers . | . . . . Garrison Access . | . . . . Terminal Hacks 5 | . 1 . 4 Record 4 | . . . 4 Prototype ID Bank 1 | . 1 . . Fabricator Hacks . | . . . . Repair Station Hacks . | . . . . Recycling Unit Hacks . | . . . . Scanalyzer . | . . . . Garrison Access Hacks . | . . . . Unauthorized Hacks 1 | . 1 . . Terminals . | . . . . Fabricators . | . . . . Repair Stations . | . . . . Recycling Units 1 | . 1 . . Tunnel 1 | . 1 . . Scanalyzers . | . . . . Garrison Access . | . . . . Data Cores Recovered . | . . . . Used . | . . . . Hacking Detections 2 | . 2 . . Full Trace Events . | . . . . Feedback Events . | . . . . Feedback Blocked . | . . . . Robot Schematics Acquired . | . . . . Robots Built . | . . . . Authchips . | . . . . Time . | . . . . Total Robot Build Rating . | . . . . Part Schematics Acquired . | . . . . Parts Built . | . . . . Authchips . | . . . . Time . | . . . . Total Part Build Rating . | . . . . Part Studies Acquired . | . . . . Parts Repaired . | . . . . Time . | . . . . Parts Recycled . | . . . . Recycled Matter . | . . . . Retrieved Matter . | . . . . Retrieved Components . | . . . . Parts Scanalyzed . | . . . . Part Schematics Acquired . | . . . . Parts Damaged . | . . . . Bothacking | -11 -10 -10 -10 ------------ Run | Yrd Mat Min Sub Used RIF Installer . | . . . . Robots Hacked . | . . . . Non-combat . | . . . . Combat . | . . . . Robot Hacks Applied . | . . . . Relay Couplers Released . | . . . . Fabnet Peak Effective % . | . . . . Robots Rewired . | . . . . Allies Hacked . | . . . . Hacks Repelled . | . . . . Allies | -11 -10 -10 -10 -------- Run | Yrd Mat Min Sub Total Allies . | . . . . Largest Group . | . . . . Highest-Rated Group . | . . . . Highest-Rated Ally . | . . . . Total Orders . | . . . . Ally Attacks . | . . . . Total Damage . | . . . . Kills . | . . . . Allies Corrupted . | . . . . Allies Melted . | . . . . Intel | -11 -10 -10 -10 ------- Run | Yrd Mat Min Sub Active Infowar (turns) 1541 | 13 655 861 12 IFF 366 | . . 354 12 Terrain 24 | . . 24 . Seismic 1151 | 13 655 483 . Robot Analysis Total . | . . . . Derelict Logs Recovered 1 | . . 1 . Drone Launches . | . . . . Drone Recoveries . | . . . . Exploration | -11 -10 -10 -10 ------------- Run | Yrd Mat Min Sub Turns Passed 2593 | 69 655 863 1006 Spaces Moved 1652 | 46 462 641 503 Core 13 | 7 . . 6 Treads . | . . . . Legs 1571 | 39 462 641 429 Wheels 68 | . . . 68 Hover . | . . . . Flight . | . . . . Fastest Speed 50 | 50 120 120 100 Average Speed 134 | 109 120 120 169 Slowest Speed 190 | 120 120 120 190 Overloaded Moves . | . . . . Propulsion Burnouts . | . . . . Robots Hopped . | . . . . Potential Cave-ins . | . . . . Cave-ins Triggered . | . . . . Exploration Rate (%) 50 | 4 75 99 24 Regions Visited 3 Branch Regions 2 Pre-discovered Areas 3 | . 1 1 1 Known Exits Taken 2 | . 1 1 . Unknown Exits Taken 1 | 1 . . . Scrap Searched 5 | . . 1 4 Spaces Dug 5 | . . . 5 Terrain Destroyed 21 | . . . 21 Melee . | . . . . Projectile . | . . . . AOE 21 | . . . 21 Terrain Rammed . | . . . . Walls Destroyed . | . . . . Machines Disabled . | . . . . Actions | -11 -10 -10 -10 --------- Run | Yrd Mat Min Sub Total 1886 | 58 538 712 578 Wait 113 | 1 54 55 3 Move 1649 | 45 461 640 503 Hop . | . . . . Pick Up 15 | 3 5 . 7 Fast Attach 14 | 6 2 3 3 Attach 3 | . . . 3 Detach 1 | . . . 1 Swap 5 | . 1 . 4 Drop 8 | 1 2 2 3 Fire 78 | 2 13 12 51 Melee . | . . . . Ram . | . . . . Kick . | . . . . Crush . | . . . . Escape Stasis . | . . . . Rewire . | . . . . Trap . | . . . . Miscellaneous . | . . . . Route ------- -11/Scrapyard -10/Materials (discovered 3 exits: *Mat x2 / *Min) -10/Mines (discovered 3 exits: *Mat x2 / *Sub) -10/Subcaves (discovered 1 exit: *Mat) History --------- Turn | Location | Event 8 | -11/Scrapyard | Discovered new exit (range 15) 70 | -11/Scrapyard | Entered Materials 310 | -10/Materials | Build established: Mutant 375 | -10/Materials | Discovered new exit (range 10) 430 | -10/Materials | Identified exit to Mines 456 | -10/Materials | Discovered new exit (range 9) 583 | -10/Materials | Discovered new exit (range 9) 591 | -10/Materials | Identified exit to Materials 725 | -10/Materials | Entered Mines 759 | -10/Mines | Met a Derelict bent on vengeance 1016 | -10/Mines | Learned location of Zion (-6) 1097 | -10/Mines | Discovered new exit (range 6) 1111 | -10/Mines | Identified exit to Subcaves 1202 | -10/Mines | Found a hidden stash of uninstalled traps 1247 | -10/Mines | Discovered exit to Materials (range 9) 1261 | -10/Mines | Received a Rocket Launcher from a helpful Derelict 1410 | -10/Mines | Discovered exit to Materials (range 5) 1588 | -10/Mines | Entered Subcaves 1589 | -10/Subcaves | Approached by a straggling Scientist 1789 | -10/Subcaves | Discovered new exit (range 9) 1827 | -10/Subcaves | Identified exit to Materials 2002 | -10/Subcaves | Visited Clippyterm 2008 | -10/Subcaves | Learned location of Section 7 (-2) 2008 | -10/Subcaves | Learned Factory garrison access intel 2290 | -10/Subcaves | A swath of the cavern ceiling suddenly collapsed 2505 | -10/Subcaves | Core integrity fell below 50% 2529 | -10/Subcaves | Lost 3 parts (1n1u1w) 2594 | -10/Subcaves | Core destroyed Last Messages --------------- A swath of the cavern ceiling suddenly collapses. 02358_ The unstable cave ceiling collapses. 02483_ Aluminum Leg destroyed. 02488_ VJ-ICK(R) destroyed. 02494_ Battle Rifle destroyed. 02498_ Med. Armor Plating destroyed. 02501_ E8-72R(R) affixes Scrap Shield Fragment to Scrap Shield. 02505_ E8-72R(R) destroyed. 02507_ Acquired 47 matter. 02508_ Acquired 2 matter. 02509_ 6K-IGS(R) sundered. 02509_ 6K-IGS(R) destroyed. 02510_ Acquired 1 matter. 02514_ Acquired Sub. Monowheel. 02521_ Dropped Scrap Shield Fragment. 02522_ Acquired Scrap Shield. 02523_ Acquired 20 matter. 02556_ Subatomizers dissect the Disposable Heat Sink. 02573_ 69-JUZ(u) deconstructs Twisted Machinery. 02594_ Cogmind sundered. Map ----- +----------------------------------------------------+ | ????????# """### ##?????????????? | | ????????#""""#?#### # #??????????????? | | ????????## ##????##### ##??????????????? | | ?????????# #???????## ##???????????????? | | ????????? #??????## #????????????????? | | ????????? #??????# #????????????????? | | ???????? % ##????### ##????????????????? | | ????????#### ????### ##?????????????????? | | ????????????# % #?#### ##?????????????????? | | ?????????????# " # # " #?????????????????? | | ????????????????""" " "#?##??????????????? | | ???????????????# ##" ## #??????????????? | | ?????????????????????### #??????????????? | | ????????????????????### #??????????????? | | ????????????????????# ##??????????????? | | ????????????????????## " "##???????????????? | | ????????????????????# # "#???????????????? | | ????????????????????# ## "#???????????????? | | ????????????????????## "#? "#???????????????? | | ????????????????## ### "##""#???????????????? | | ????????????????# # ##???????????????? | | ????????????????# # # ##??????????????? | | ???????????????????##### #??????????????? | | ??????????????????????## ] #??????????????? | | ??????????????## # ### !*= ##??????????????? | | ??????????????# !!@###???????????????? | | ??????????????# !s#?????????????????? | | ?????????? ### ????????????????? | | ??????????? ?????## ## ??????????????? | | ?????????????????????#####? !????????????? | | ???????????????????????????? %!!#???????????? | | ?????????????????????????????[=*#???????????? | | ??????????????????????????????###???????????? | | ????????????????????????????????????????????? | | ????????????????????????????????????????????? | | ????????????????????????????????????????????? | | ????????????????????????????????????????????? | | ????????????????????????????????????????????? | | ????????????????????????????????????????????? | | ????????????????????????????????????????????? | | ????????????????????????????????????????????? | | ????????????????????????????????????????????? | | ????????????????????????????????????????????? | | ????????????????????????????????????????????? | | ????????????????????????????????????????????? | | ????????????????????????????????????????????? | | ????????????????????????????????????????????? | | ????????????????????????????????????????????? | | | | | +----------------------------------------------------+ Best States ------------- Heat Dissipation 25 Energy Generation 10 Energy Capacity 250 Matter Stores 300 Matter Capacity 300 Sight Range 16 Terrain Scan Range 14 Terrain Scan Density 10 Armor Coverage 225 Resistance: KI 20 Resistance: TH 20 Resistance: EX 20 Resistance: EM 20 Resistance: I 20 Resistance: S 20 Resistance: P 20 Evasion (%) 55 Offensive Hacking 10 Item Schematics ----------------- None Robot Schematics ------------------ None Fabricated ------------ Nothing Repaired ---------- Nothing Studied --------- None Alien Tech Used ----------------- None Achievements -------------- DATA ERROR: Steam Global Achievement% Organ Harvest Challenges ------------ None Game ------ Seed CoordinationTechCanceller Manual? 1 Play Time 00:58:11 Cumulative 634.5 hours Start 2026.02.22 @ 08:19:22 End 2026.02.22 @ 10:00:28 Sessions 1 Manual Loads 0 Difficulty Adventurer Special Mode None Game No. 121 Rogue 63 Adventurer 58 Explorer 0 Win Type - Total 27 Types 6/3/1/8/1/1/1/3/2/1 Lore% 77 Gallery% 81 Achievement% 44 Wizard Run 0 Options --------- Layout 0 ASCII 0 Keyboard 0 Movement Numpad Keybinds 0 Fullscreen 2 Font 18/X11 Map View 76x50 Zoom Use 0% Tactical HUD 1 Map Filters NONE Filters NONE Steam 1 RUN: 33086efb-b9bc-4c1c-96ef-f0d679501044